lending/lending_fUSD_20250508
["ID","MTS","AMOUNT","RATE_DAILY","PERIOD"]
[360293039,1746719432603,-500.0,0.00021024,2]
[360293040,1746719432614,-500.0,0.00021024,2]
[360293041,1746719432623,-500.0,0.00021024,2]
[360293042,1746719432632,-623.0,0.00021024,2]
[360293043,1746719432642,-500.0,0.00021024,2]
[360293044,1746719432651,-500.0,0.00021024,2]
[360293045,1746719432660,-500.0,0.00021024,2]
[360293046,1746719432670,-500.0,0.00021024,2]
[360293047,1746719432680,-500.0,0.00021024,2]
[360293048,1746719432689,-500.0,0.00021024,2]
[360293049,1746719432698,-500.0,0.00021024,2]
[360293050,1746719432707,-500.0,0.00021024,2]
[360293051,1746719432716,-500.0,0.00021024,2]
[360293052,1746719432725,-500.0,0.00021024,2]
[360293053,1746719432734,-500.0,0.00021024,2]
[360293054,1746719432744,-500.0,0.00021024,2]
[360293055,1746719432753,-500.0,0.00021024,2]
[360293056,1746719432762,-500.0,0.00021024,2]
[360293057,1746719432771,-500.0,0.00021024,2]
[360293059,1746719432781,-500.0,0.00021024,2]
[360293060,1746719432791,-500.0,0.00021024,2]
[360293062,1746719432800,-500.0,0.00021024,2]
[360293064,1746719432809,-825.0,0.00021024,2]
[360293066,1746719432818,-151.0,0.0002103,2]
[360293068,1746719432828,-151.0,0.00021031,2]
[360293070,1746719432837,-151.0,0.00021033,2]
[360293072,1746719432848,-151.0,0.00021041,2]
[360293074,1746719432861,-17775.09,0.00021095,2]
[360293076,1746719432870,-745.65223616,0.00021232,2]
[360293078,1746719432880,-877.5,0.00021323,2]
[360293080,1746719432889,-300.0,0.00021331,2]
[360293082,1746719432899,-187.33,0.00021369,2]
[360293084,1746719432909,-151.0,0.000214,2]
[360293086,1746719432918,-151.0,0.000214,2]
[360293088,1746719432927,-151.0,0.000214,2]
[360293090,1746719432936,-151.0,0.000214,2]
[360293092,1746719432946,-180.809822,0.000214,2]
[360293094,1746719432955,-357.81719,0.000214,2]
[360293096,1746719432965,-357.81719,0.000214,2]
[360293098,1746719432974,-200.0,0.00021547,2]
[360293100,1746719432984,-250.0,0.00021547,2]
[360293102,1746719432994,-200.0,0.00021547,2]
[360293104,1746719433003,-250.0,0.00021547,2]
[360293106,1746719433012,-200.0,0.00021547,2]
[360293108,1746719433022,-714.0,0.00021618,2]
[360293110,1746719433031,-6989.7030624,0.00021665,2]
[360293112,1746719433040,-152.4175478,0.00021667,2]
[360293114,1746719433050,-159.0,0.000217,5]
[360293116,1746719433059,-300.0,0.00021735,2]
[360293118,1746719433068,-59.57041466,0.00021765,2]
[360293124,1746719433110,-5325.96709304,0.00021765,2]
[360293126,1746719433120,-43245.8999999,0.00021765,2]
[360293127,1746719433129,-2108.46606306,0.00021765,2]
[360293130,1746719433140,-426.02642425,0.00021765,2]
[360293132,1746719433151,-1434.64582225,0.00021765,2]
[360293134,1746719433162,-2205.82304066,0.00021765,2]
[360293136,1746719433173,-1755.3,0.00021765,2]
[360293394,1746719439082,-255.512,0.00020178,2]
[360293395,1746719439094,-153.0,0.00020178,2]
[360293396,1746719439104,-2.31918781,0.00021667,2]
[360293397,1746719439119,-150.09835999,0.00021667,2]
[360293398,1746719439129,-21841.83060818,0.00021765,2]
[360293399,1746719439139,-5494.6983479,0.00021765,2]
[360293400,1746719439149,-500.0,0.00021773,2]
[360293401,1746719439159,-500.0,0.00021773,2]
[360293402,1746719439169,-292.91172513,0.00021776,2]
[360293403,1746719439179,-7907.9169115,0.00021776,2]
[360293404,1746719439189,-1400.0,0.0002178,2]
[360293405,1746719439200,-3000.0,0.0002178,2]
[360293406,1746719439210,-773.2413689,0.0002178,2]
[360293407,1746719439220,-1680.0,0.0002184,2]
[360293408,1746719439230,-714.0,0.00021841,2]
[360293409,1746719439240,-2000.0,0.00021864,2]
[360293410,1746719439249,-617.0,0.00021918,2]
[360293411,1746719439264,-532.0,0.00021918,2]
[360293412,1746719439274,-165.1,0.00021973,2]
[360293414,1746719439286,-3000.0,0.00022,2]
[360293415,1746719439296,-1089.0,0.00022,2]
[360293416,1746719439306,-1089.0,0.00022,2]
[360293417,1746719439316,-714.0,0.00022064,2]
[360293418,1746719439326,-714.0,0.00022287,2]
[360293419,1746719439336,-550.78989536,0.00022287,2]
[360293420,1746719439346,-223.0315306,0.00022326,2]
[360293421,1746719439359,-801.85129955,0.00022328,2]
[360293422,1746719439369,-1000.0,0.00022456,2]
[360293423,1746719439380,-714.0,0.00022509,2]
[360293424,1746719439390,-250.0,0.00022528,2]
[360293425,1746719439400,-151.0,0.00022555,7]
[360293426,1746719439410,-300.0,0.00022701,2]
[360293427,1746719439420,-714.0,0.00022732,2]
[360293428,1746719439430,-151.0,0.00022733,7]
[360293431,1746719439440,-151.0,0.00022733,7]
[360293433,1746719439451,-158.98339,0.00022733,7]
[360293435,1746719439460,-151.0,0.00022733,7]
[360293437,1746719439470,-151.0,0.00022733,7]
[360293439,1746719439480,-151.0,0.00022733,7]
[360293441,1746719439490,-360.664035,0.00022733,7]
[360293443,1746719439499,-360.664035,0.00022733,7]
[360293445,1746719439510,-151.0,0.00022733,7]
[360293447,1746719439519,-187.33,0.00022739,2]
[360293449,1746719439530,-165.1,0.00022779,2]
[360293451,1746719439540,-1400.0,0.00022876,2]
[360293453,1746719439551,-3000.0,0.00022876,2]
[360293455,1746719439561,-151.0,0.00022876,7]
[360293457,1746719439571,-654.157771,0.00022876,7]
[360293459,1746719439581,-654.157771,0.00022876,7]
[360293460,1746719439591,-151.0,0.00022876,7]
[360293461,1746719439601,-151.0,0.00022876,7]
[360293462,1746719439612,-151.0,0.00022876,7]
[360293463,1746719439623,-151.0,0.00022876,7]
[360293464,1746719439633,-152.001865,0.00022876,7]
[360293465,1746719439644,-831.51979763,0.00022876,2]
[360293466,1746719439654,-151.0,0.00022955,7]
[360293467,1746719439664,-151.0,0.00022955,7]
[360293468,1746719439675,-151.0,0.00022955,7]
[360293469,1746719439685,-714.0,0.00022955,2]
[360293471,1746719439697,-500.0,0.00022999,2]
[360293473,1746719439708,-3000.0,0.00023,2]
[360293476,1746719439718,-200.0,0.00023,2]
[360293481,1746719439729,-150.0,0.00023,2]
[360293483,1746719439739,-150.0,0.00023,2]
[360293486,1746719439750,-150.0,0.00023,2]
[360293489,1746719439760,-151.0,0.00023,7]
[360293491,1746719439770,-244.7964,0.00023,7]
[360293494,1746719439780,-400.0,0.00023,2]
[360293497,1746719439791,-275.34863,0.00023,7]
[360293499,1746719439801,-275.34863,0.00023,7]
[360293502,1746719439811,-151.0,0.00023,7]
[360293504,1746719439821,-151.0,0.00023176,7]
[360293507,1746719439831,-151.0,0.00023176,7]
[360293509,1746719439841,-357.81719,0.00023176,7]
[360293512,1746719439852,-357.81719,0.00023176,7]
[360293515,1746719439864,-151.0,0.00023177,7]
[360293517,1746719439875,-151.0,0.00023177,7]
[360293520,1746719439884,-1302.0,0.00023178,2]
[360293523,1746719439894,-928.0,0.00023178,2]
[360293525,1746719439904,-798.0,0.00023178,2]
[360293528,1746719439914,-318.03384326,0.00023178,2]
[360293562,1746719440713,-598.06954967,0.00023178,2]
[360293563,1746719440726,-537.89660707,0.00023178,2]
[360293564,1746719440735,-1141.44866816,0.00023178,2]
[360293565,1746719440747,-103.55133184,0.00023178,2]
[360293566,1746719440756,-582.0,0.00023178,2]
[360293567,1746719440766,-551.0,0.00023178,2]
[360293568,1746719440775,-916.0,0.00023178,2]
[360293569,1746719440785,-4020.0,0.00023178,2]
[360293570,1746719440794,-1325.786,0.00023178,2]
[360293571,1746719440804,-862.28603014,0.00023424,2]
[360293572,1746719440815,-877.5,0.00023587,2]
[360293573,1746719440825,-6989.70306233,0.00023688,2]
[360293574,1746719440835,-231.28369723,0.00023695,2]
[360293575,1746719440844,-2108.05119924,0.000237,2]
[360293576,1746719440854,-1480.54,0.00023752,2]
[360293577,1746719440866,-462.51426761,0.00023836,2]
[360293578,1746719440879,-955.41573239,0.00023836,2]
[360293579,1746719440888,-151.0,0.00023836,7]
[360293580,1746719440897,-1014.74222095,0.0002385,2]
[360293581,1746719440906,-2351.0,0.00023896,2]
[360293582,1746719440916,-151.0,0.000239,7]
[360293583,1746719440925,-1400.0,0.00023972,2]
[360293584,1746719440934,-3000.0,0.00023972,2]
[360293585,1746719440944,-894.19061326,0.00023972,2]
[360293586,1746719440960,-227.6514334,0.00024,2]
[360293587,1746719440982,-2772.3485666,0.00024,2]
[360293588,1746719441001,-2057.10802515,0.00024,14]
[360293589,1746719441020,-151.0,0.00024038,7]
[360293590,1746719441035,-151.0,0.00024072,7]
[360293591,1746719441053,-151.0,0.00024072,7]
[360293592,1746719441072,-360.664035,0.00024072,7]
[360293593,1746719441090,-360.664035,0.00024072,7]
[360293594,1746719441110,-151.0,0.00024072,7]
[360293595,1746719441128,-187.33,0.00024109,2]
[360293596,1746719441145,-263.69625483,0.00024399,2]
[360293597,1746719441159,-16513.72147658,0.00024399,2]
[360293598,1746719441178,-927.27566595,0.0002452,2]
[360293599,1746719441191,-4000.0,0.00024658,2]
[360293600,1746719441212,-1000.0,0.00024658,2]
[360293601,1746719441226,-151.0,0.00024658,7]
[360293602,1746719441247,-151.0,0.00024658,7]
[360293603,1746719441263,-654.157771,0.00024658,7]
[360293604,1746719441279,-654.157771,0.00024658,7]
[360293605,1746719441295,-249.0940805,0.000247,2]
[360293606,1746719441309,-189.084837,0.00024728,2]
[360293607,1746719441324,-500.0,0.00024773,2]
[360293608,1746719441340,-500.0,0.00024773,2]
[360293609,1746719441355,-500.0,0.00024799,2]
[360293610,1746719441370,-500.0,0.00024799,2]
[360293611,1746719441385,-500.0,0.00024799,2]
[360293612,1746719441401,-500.0,0.00024799,2]
[360293613,1746719441417,-162.151241,0.000248,7]
[360293614,1746719441435,-151.0,0.000248,7]
[360293615,1746719441451,-151.0,0.000248,7]
[360293616,1746719441466,-151.0,0.000248,7]
[360293617,1746719441481,-151.0,0.000248,7]
[360293618,1746719441496,-151.0,0.000248,7]
[360293619,1746719441512,-151.0,0.000248,7]
[360293620,1746719441527,-151.0,0.000248,7]
[360293621,1746719441544,-151.0,0.000248,7]
[360293622,1746719441558,-180.930738,0.000248,7]
[360293623,1746719441574,-151.0,0.000248,7]
[360293624,1746719441590,-654.157771,0.000248,7]
[360293625,1746719441604,-654.157771,0.000248,7]
[360293626,1746719441621,-151.0,0.000248,7]
[360293627,1746719441637,-151.0,0.000248,7]
[360293628,1746719441652,-221.443256,0.000248,7]
[360293629,1746719441667,-151.0,0.000248,7]
[360293630,1746719441681,-151.0,0.000248,7]
[360293631,1746719441697,-151.0,0.000248,7]
[360293632,1746719441713,-151.0,0.000248,7]
[360293633,1746719441728,-151.0,0.000248,7]
[360293634,1746719441743,-160.468683,0.000248,7]
[360293635,1746719441758,-151.0,0.000248,7]
[360293636,1746719441774,-360.664035,0.000248,7]
[360293637,1746719441791,-275.34863,0.000248,7]
[360293638,1746719441806,-275.34863,0.000248,7]
[360293639,1746719441822,-360.664035,0.000248,7]
[360293640,1746719441838,-275.34863,0.000248,7]
[360293641,1746719441853,-151.0,0.000248,7]
[360293642,1746719441871,-275.34863,0.000248,7]
[360293643,1746719441887,-160.002933,0.000248,7]
[360293644,1746719441903,-151.0,0.000248,7]
[360293645,1746719441917,-151.0,0.000248,7]
[360293646,1746719441932,-220.121743,0.000248,7]
[360293647,1746719441946,-357.81719,0.000248,7]
[360293648,1746719441961,-357.81719,0.000248,7]
[360293649,1746719441976,-357.81719,0.000248,7]
[360293650,1746719441992,-357.81719,0.000248,7]
[360293651,1746719442007,-151.0,0.000248,7]
[360293652,1746719442022,-151.0,0.000248,7]
[360293653,1746719442038,-151.0,0.000248,7]
[360293654,1746719442054,-151.0,0.000248,7]
[360293655,1746719442069,-151.0,0.000248,7]
[360293656,1746719442084,-157.390949,0.000248,7]
[360293657,1746719442100,-151.280404,0.000248,7]
[360293658,1746719442116,-195.95389,0.000248,7]
[360293659,1746719442131,-195.95389,0.000248,7]
[360293660,1746719442145,-151.0,0.000248,7]
[360293661,1746719442161,-151.0,0.000248,7]
[360293662,1746719442177,-151.0,0.000248,7]
[360293663,1746719442192,-151.0,0.000248,7]
[360293664,1746719442209,-151.0,0.000248,7]
[360293665,1746719442227,-151.0,0.000248,7]
[360293666,1746719442242,-152.282913,0.000248,7]
[360293667,1746719442258,-151.0,0.000248,7]
[360293668,1746719442272,-151.0,0.000248,7]
[360293669,1746719442289,-151.0,0.000248,7]
[360293670,1746719442304,-213.199781,0.000248,7]
[360293671,1746719442319,-213.199781,0.000248,7]
[360293672,1746719442336,-151.0,0.000248,7]
[360293673,1746719442351,-151.0,0.000248,7]
[360293674,1746719442368,-163.229232,0.000248,7]
[360293677,1746719442384,-1212.947035,0.000248,7]
[360293679,1746719442399,-219.418152,0.000248,7]
[360293681,1746719442415,-249.082072,0.000248,7]
[360293682,1746719442429,-219.418152,0.000248,7]
[360293683,1746719442444,-1212.947035,0.000248,7]
[360293685,1746719442461,-249.082072,0.000248,7]
[360293686,1746719442476,-151.0,0.000248,7]
[360293687,1746719442491,-151.0,0.000248,7]
[360293689,1746719442504,-157.003663,0.000248,7]
[360293691,1746719442514,-157.003663,0.000248,7]
[360293726,1746719442819,-151.0,0.000248,7]
[360293727,1746719442851,-151.0,0.000248,7]
[360293728,1746719442864,-151.0,0.000248,7]
[360293729,1746719442874,-151.0,0.000248,7]
[360293730,1746719442884,-151.0,0.000248,7]
[360293731,1746719442894,-168.721068,0.000248,7]
[360293732,1746719442903,-151.0,0.000248,7]
[360293733,1746719442913,-151.0,0.000248,7]
[360293734,1746719442922,-151.0,0.000248,7]
[360293735,1746719442931,-9525.63019753,0.000248,3]
[360293736,1746719442945,-664.16711627,0.000248,3]
[360293737,1746719442956,-2178.16402008,0.000248,3]
[360293738,1746719442968,-560.47118792,0.000248,3]
[360293739,1746719442980,-6861.9,0.000248,3]
[360293740,1746719442991,-8525.0,0.000248,3]
[360293741,1746719443003,-12404.68096912,0.000248,3]
[360293744,1746719443137,-153.0,0.00023178,2]
[360293746,1746719443147,-294.72946,0.000248,3]
[360293748,1746719443159,-6415.1904487,0.000248,3]
[360293753,1746719443229,-751.00775011,0.000248,3]
[360293754,1746719443575,-24625.32851917,0.000248,3]
[360293755,1746719443585,-151.311881,0.000248,7]
[360293756,1746719443595,-151.311881,0.000248,7]
[360293757,1746719443604,-151.0,0.000248,7]
[360293758,1746719443615,-500.0,0.00024865,2]
[360293759,1746719443624,-500.0,0.00024865,2]
[360293760,1746719443633,-500.0,0.00024865,2]
[360293761,1746719443643,-500.0,0.00024865,2]
[360293762,1746719443652,-151.0,0.00024866,7]
[360293763,1746719443661,-151.0,0.00024866,7]
[360293764,1746719443671,-151.0,0.00024866,7]
[360293765,1746719443680,-159.510026,0.00024866,7]
[360293766,1746719443690,-151.0,0.00024866,7]
[360293767,1746719443699,-654.157771,0.00024866,7]
[360293768,1746719443708,-654.157771,0.00024866,7]
[360293769,1746719443718,-151.0,0.00024866,7]
[360293770,1746719443727,-151.0,0.00024866,7]
[360293771,1746719443737,-151.0,0.00024866,7]
[360293772,1746719443746,-151.0,0.00024866,7]
[360293773,1746719443756,-151.0,0.00024866,7]
[360293774,1746719443766,-360.664035,0.00024866,7]
[360293775,1746719443776,-275.34863,0.00024866,7]
[360293776,1746719443786,-360.664035,0.00024866,7]
[360293777,1746719443795,-275.34863,0.00024866,7]
[360293778,1746719443805,-151.0,0.00024866,7]
[360293779,1746719443815,-214.896785,0.00024866,7]
[360293780,1746719443824,-151.0,0.00024866,7]
[360293781,1746719443834,-151.0,0.00024866,7]
[360293782,1746719443843,-151.0,0.00024866,7]
[360293783,1746719443853,-151.0,0.00024883,7]
[360293784,1746719443863,-357.81719,0.00024883,7]
[360293785,1746719443874,-357.817197,0.00024883,7]
[360293786,1746719443883,-36403.1348345,0.0002489,3]
[360293787,1746719443893,-500.0,0.00024899,2]
[360293788,1746719443902,-269.868274,0.000249,7]
[360293789,1746719443912,-157.476117,0.000249,7]
[360293790,1746719443921,-151.0,0.000249,7]
[360293791,1746719443931,-158.566715,0.000249,7]
[360293792,1746719443941,-654.157771,0.000249,7]
[360293793,1746719443950,-654.15776203,0.000249,7]
[360293794,1746719443960,-151.0,0.000249,7]
[360293795,1746719443969,-151.0,0.000249,7]
[360293796,1746719443978,-151.0,0.000249,7]
[360293797,1746719443987,-151.0,0.000249,7]
[360293798,1746719443996,-151.0,0.000249,7]
[360293799,1746719444006,-360.664035,0.000249,7]
[360293800,1746719444017,-275.34863,0.000249,7]
[360293801,1746719444027,-360.664044,0.000249,7]
[360293802,1746719444039,-275.348632,0.000249,7]
[360293803,1746719444050,-151.0,0.000249,7]
[360293804,1746719444059,-1000.0,0.00024952,2]
[360293805,1746719444070,-690.8,0.0002498,2]
[360293806,1746719444081,-535.54,0.0002498,2]
[360293807,1746719444090,-150.99,0.0002498,2]
[360293808,1746719444100,-220.333926,0.0002499,7]
[360293809,1746719444110,-151.0,0.0002499,7]
[360293810,1746719444121,-151.0,0.0002499,7]
[360293811,1746719444131,-151.0,0.0002499,7]
[360293812,1746719444140,-151.0,0.0002499,7]
[360293813,1746719444149,-151.0,0.0002499,7]
[360293814,1746719444158,-195.95389,0.0002499,7]
[360293815,1746719444167,-151.0,0.0002499,7]
[360293816,1746719444176,-195.95389,0.0002499,7]
[360293817,1746719444186,-151.0,0.0002499,7]
[360293818,1746719444195,-151.0,0.0002499,7]
[360293819,1746719444207,-151.0,0.0002499,7]
[360293820,1746719444219,-151.0,0.0002499,7]
[360293821,1746719444228,-151.0,0.0002499,7]
[360293822,1746719444238,-22824.70712829,0.0002499,3]
[360293823,1746719444251,-452.19078959,0.0002499,3]
[360293824,1746719444427,-151.0,0.00021108,2]
[360293825,1746719444437,-13126.23691662,0.0002499,3]
[360293826,1746719444447,-500.0,0.00024999,2]
[360293827,1746719444457,-500.0,0.00024999,2]
[360293828,1746719444466,-500.0,0.00024999,2]
[360293829,1746719444476,-500.0,0.00024999,2]
[360293830,1746719444486,-3000.0,0.00025,2]
[360293831,1746719444496,-75473.65163048,0.00025,2]
[360293832,1746719444506,-450.0,0.00025,2]
[360293833,1746719444515,-151.0,0.00025,7]
[360293834,1746719444525,-151.0,0.00025,7]
[360293835,1746719444534,-151.0,0.00025,7]
[360293836,1746719444544,-152.04259,0.00025,7]
[360293837,1746719444554,-151.0,0.00025,7]
[360293838,1746719444563,-200.814183,0.00025,7]
[360293839,1746719444573,-151.0,0.00025,7]
[360293840,1746719444582,-200.814183,0.00025,7]
[360293841,1746719444591,-240.171405,0.00025,7]
[360293842,1746719444601,-150.0,0.00025,2]
[360293843,1746719444610,-151.0,0.00025,7]
[360293844,1746719444621,-151.0,0.00025,7]
[360293845,1746719444631,-151.0,0.00025,7]
[360293846,1746719444641,-151.0,0.00025,7]
[360293847,1746719444651,-151.0,0.00025,7]
[360293848,1746719444661,-176.733319,0.00025,7]
[360293849,1746719444671,-176.733319,0.00025,7]
[360293850,1746719444681,-151.0,0.00025,7]
[360293851,1746719444691,-151.0,0.00025,7]
[360293852,1746719444700,-151.0,0.00025,7]
[360293853,1746719444709,-151.0,0.00025,7]
[360293854,1746719444719,-151.0,0.00025,7]
[360293855,1746719444728,-151.0,0.00025,7]
[360293856,1746719444738,-151.0,0.00025,7]
[360293857,1746719444749,-213.199781,0.00025,7]
[360293858,1746719444758,-213.199781,0.00025,7]
[360293859,1746719444768,-151.0,0.00025,7]
[360293860,1746719444778,-151.0,0.00025,7]
[360293861,1746719444787,-219.418152,0.00025,7]
[360293862,1746719444798,-1212.947035,0.00025,7]
[360293863,1746719444808,-249.082072,0.00025,7]
[360293864,1746719444818,-219.418152,0.00025,7]
[360293865,1746719444828,-1212.947035,0.00025,7]
[360293866,1746719444837,-249.082072,0.00025,7]
[360293867,1746719444847,-151.0,0.00025,7]
[360293868,1746719444856,-151.0,0.00025,7]
[360293869,1746719444868,-152.56786,0.00025,7]
[360293870,1746719444878,-157.003663,0.00025,7]
[360293871,1746719444887,-157.003663,0.00025,7]
[360293872,1746719444897,-151.0,0.00025,7]
[360293873,1746719444907,-151.0,0.00025,7]
[360293874,1746719444918,-151.0,0.00025,7]
[360293875,1746719444928,-151.0,0.00025,7]
[360293876,1746719444937,-157.715481,0.00025,7]
[360293877,1746719444946,-151.0,0.00025,7]
[360293878,1746719444956,-151.0,0.00025,7]
[360293879,1746719444965,-151.0,0.00025,7]
[360293880,1746719444975,-151.0,0.00025,7]
[360293881,1746719444984,-151.0,0.00025,7]
[360293882,1746719444994,-177.130422,0.00025,7]
[360293883,1746719445003,-151.0,0.00025,7]
[360293884,1746719445012,-151.0,0.00025,7]
[360293885,1746719445021,-256.792874,0.00025,7]
[360293886,1746719445031,-151.0,0.00025,7]
[360293887,1746719445040,-151.0,0.00025,7]
[360293888,1746719445049,-151.0,0.00025,7]
[360293889,1746719445059,-151.0,0.00025,7]
[360293890,1746719445068,-417.487208,0.00025,7]
[360293891,1746719445077,-352.841271,0.00025,7]
[360293892,1746719445086,-352.841271,0.00025,7]
[360293893,1746719445095,-417.487208,0.00025,7]
[360293894,1746719445105,-151.0,0.00025,7]
[360293895,1746719445114,-920.173885,0.00025,7]
[360293896,1746719445125,-615.181611,0.00025,7]
[360293897,1746719445134,-615.181611,0.00025,7]
[360293898,1746719445143,-151.0,0.00025,7]
[360293899,1746719445153,-204.897675,0.00025,7]
[360293900,1746719445163,-151.0,0.00025,7]
[360293901,1746719445172,-151.0,0.00025,7]
[360293902,1746719445183,-151.0,0.00025,7]
[360293903,1746719445194,-151.311881,0.00025,7]
[360293904,1746719445207,-151.311881,0.00025,7]
[360293905,1746719445222,-151.0,0.00025,7]
[360293906,1746719445231,-168.470085,0.00025,7]
[360293907,1746719445241,-151.0,0.00025,7]
[360293908,1746719445251,-151.0,0.00025,7]
[360293909,1746719445260,-637.076514,0.00025,7]
[360293910,1746719445270,-637.076514,0.00025,7]
[360293911,1746719445280,-151.0,0.00025,7]
[360293912,1746719445292,-756.777036,0.00025,7]
[360293913,1746719445303,-151.0,0.00025,7]
[360293914,1746719445313,-756.777036,0.00025,7]
[360293915,1746719445323,-239.84119403,0.00025064,2]
[360293916,1746719445333,-1400.0,0.00025068,7]
[360293917,1746719445342,-3000.0,0.00025068,7]
[360293918,1746719445352,-961.58486559,0.00025068,2]
[360293919,1746719445361,-152.12196414,0.000251,2]
[360293921,1746719445373,-151.435094,0.000252,7]
[360293922,1746719445383,-156.842101,0.00025223,7]
[360293924,1746719445392,-151.0,0.00025223,7]
[360293926,1746719445402,-151.0,0.00025223,7]
[360293927,1746719445411,-151.0,0.00025223,7]
[360293928,1746719445421,-151.0,0.00025223,7]
[360293930,1746719445431,-151.0,0.00025223,7]
[360293931,1746719445440,-151.0,0.00025223,7]
[360293932,1746719445449,-151.0,0.00025265,7]
[360293933,1746719445458,-875.541823,0.00025265,7]
[360293934,1746719445467,-875.541823,0.00025265,7]
[360293936,1746719445476,-319.27216412,0.00025273,2]
[360293938,1746719445486,-151.0,0.00025275,7]
[360293940,1746719445495,-151.0,0.00025275,7]
[360293942,1746719445505,-151.0,0.00025275,7]
[360293944,1746719445514,-195.95389,0.00025275,7]
[360293946,1746719445523,-195.95389,0.00025275,7]
[360293947,1746719445533,-280.0,0.000253,10]
[360293948,1746719445543,-187.33,0.00025479,2]
[360293949,1746719445552,-2108.02,0.000255,2]
[360293950,1746719445562,-6989.70306233,0.00025711,2]
[360293951,1746719445571,-455.39,0.00025737,2]
[360293952,1746719445581,-456.82,0.00025737,2]
[360293953,1746719445590,-456.82,0.00025737,2]
[360293954,1746719445599,-456.82,0.00025737,2]
[360293955,1746719445609,-456.82,0.00025737,2]
[360293956,1746719445620,-456.82,0.00025737,2]
[360293957,1746719445629,-456.82,0.00025737,2]
[360293958,1746719445639,-36403.1348345,0.00025779,3]
[360293959,1746719445648,-666.0,0.00025789,2]
[360293960,1746719445658,-500.0,0.00025799,2]
[360293961,1746719445668,-500.0,0.00025799,2]
[360293962,1746719445677,-500.0,0.00025799,2]
[360293963,1746719445686,-25365.38,0.000258,2]
[360293964,1746719445696,-209.041618,0.000258,7]
[360293965,1746719445705,-151.0,0.000258,7]
[360293966,1746719445715,-151.0,0.000258,7]
[360293967,1746719445725,-213.199781,0.000258,7]
[360293968,1746719445734,-213.199781,0.000258,7]
[360293969,1746719445744,-151.0,0.000258,7]
[360293970,1746719445753,-151.0,0.000258,7]
[360293971,1746719445763,-219.418152,0.000258,7]
[360293972,1746719445772,-1212.947035,0.000258,7]
[360293973,1746719445782,-249.082072,0.000258,7]
[360293974,1746719445791,-219.418152,0.000258,7]
[360293975,1746719445801,-1212.947035,0.000258,7]
[360293976,1746719445810,-249.082072,0.000258,7]
[360293977,1746719445820,-151.0,0.000258,7]
[360293978,1746719445829,-157.003663,0.000258,7]
[360293979,1746719446009,-157.003663,0.000258,7]
[360293980,1746719446020,-151.0,0.000258,7]
[360293981,1746719446030,-151.0,0.000258,7]
[360293982,1746719446040,-151.0,0.000258,7]